[Event "Szansa Chess Open 2022"]
[Site "Warsaw"]
[Date "2022.09.18"]
[Round "6.14"]
[White "Sidorczuk, Pawel"]
[Black "Bartkiewicz, Pawel"]
[Result "0-1"]
[ECO "B12"]
[WhiteElo "1886"]
[BlackElo "1938"]
[Annotator "TA"]
[PlyCount "96"]
[EventDate "2022.09.17"]
[EventCountry "POL"]
[SourceTitle "playchess.com"]
[Source "ChessBase"]
[SourceQuality "1"]
[TimeControl "900+10"]

{[%evp 9,96,12,18,2,7,7,8,0,0,0,5,0,6,14,15,14,5,5,12,-13,0,-17,0,0,0,0,0,-1,-1,-6,-2,-6,-3,-6,-7,-6,-6,-22,-29,-41,-40,-41,-42,-88,-89,-93,-98,-139,-131,-131,-118,-126,-57,-39,7,-39,-38,-64,-55,-28,-57,-89,0,-61,-46,-52,-8,-76,-76,-155,0,0,0,0,0,-100,-108,-1675,-382,-502,-513,-5130,-5118,-29988,-29989,-29995,-29988,-29996,-29997]} 1. e4 {[%emt 0:01:51]} c6 {[%emt 0:00:21]} 2. d4 {[%emt 0:00:17]} d5 {[%emt 0:00:01]} 3. e5 {[%emt 0:00:01]} Bf5 {[%emt 0:00:01]} 4. c4 {[%emt 0:00:02]} e6 {[%emt 0:00:01]} 5. Nc3 {[%emt 0:00:01]} Ne7 {[%emt 0:00:01][%cal Oc6c5]} 6. h3 {[%emt 0:00:06] B12: Caro-Kann: Advance Variation.} Nd7 {[%emt 0:00:15]} 7. Nf3 {[%emt 0:00:06]} h6 {[%emt 0:00:37]} 8. Be3 {[%emt 0:00:40] [#] The position is equal.} dxc4 $146 {[%emt 0:00:02]} ({Predecessor:} 8... Bh7 9. Qb3 Qb6 10. Qxb6 Nxb6 11. cxd5 Nexd5 12. Nxd5 Nxd5 13. Bd2 Be7 14. a3 O-O {½-½ (50) Muetsch,A (1360)-Reinecke,K (1461) Hannover 2013}) 9. Bxc4 {[%emt 0:00:02]} Nd5 {[%emt 0:00:01]} 10. O-O {[%emt 0:00:16]} Be7 {[%emt 0:00:07]} 11. Nxd5 {[%emt 0:00:34]} cxd5 {[%emt 0:00:05]} 12. Bd3 {[%emt 0:00:01]} Bxd3 {[%emt 0:00:16]} 13. Qxd3 {[%emt 0:00:01]} Qb6 {[%emt 0:00:11]} 14. b3 {[%emt 0:00:03]} O-O {[%emt 0:00:06]} 15. a4 {[%emt 0:00:48]} a5 {[%emt 0:00:17]} 16. Rfc1 {[%emt 0:00:04]} Nb8 {[%emt 0:01:00]} 17. Qb5 {[%emt 0:00:06]} Ra6 {[%emt 0:01:58]} 18. Bd2 {[%emt 0:02:02]} Nc6 {[%emt 0:00:42]} 19. Kf1 {[%emt 0:00:55]} Qa7 {[%emt 0:02:58]} 20. Qd3 {[%emt 0:01:04]} Rb6 {[%emt 0:00:08]} 21. g4 {[%emt 0:01:26]} Qa6 {[%emt 0:00:10]} 22. Qxa6 {[%emt 0:00:28]} Rxa6 {[%emt 0:00:01]} 23. Ke2 {[%emt 0:00:30]} Rb8 {[%emt 0:00:02]} 24. Kd3 {[%emt 0:00:31]} Kf8 {[%emt 0:00:21][%cal Bg8f8,Bf8e8,Be8d7][%mdl 32]} 25. h4 {[%emt 0:01:23]} b5 {[%emt 0:00:20]} 26. Rab1 {[%emt 0:00:19]} (26. axb5 $15 Rxb5 27. Rc3) 26... Ke8 $17 {[%emt 0:00:56]} 27. g5 {[%emt 0:00:05]} h5 {[%emt 0:00:48]} 28. Ng1 {[%emt 0:00:29]} Kd7 {[%emt 0:00:20]} 29. Ne2 {[%emt 0:00:02]} g6 {[%emt 0:00:13]} 30. Nc3 {[%emt 0:00:38] [#]} Na7 {[%emt 0:01:56]} (30... bxa4 $1 $17 31. Nxa4 Ra7) 31. Ra1 $15 {[%emt 0:02:12]} Bb4 {[%emt 0:02:06]} (31... bxa4 $15 32. bxa4 Bb4) 32. Nxb5 {[%emt 0:02:25]} (32. axb5 $1 $11 {feels stronger.} Nxb5 33. Na4) 32... Nxb5 {[%emt 0:00:02]} 33. Bxb4 {[%emt 0:00:07]} Nxd4 {[%emt 0:04:01]} 34. Bd6 {[%emt 0:00:01]} Rxd6 {[%emt 0:00:11]} 35. exd6 $11 {[%emt 0:00:03][%mdl 4096] Endgame KRR-KRN} Nc6 {[%emt 0:00:12]} (35... Nxb3 $17 36. Rcb1 Rb4) 36. Rab1 {[%emt 0:01:15]} (36. Rc3 $11) 36... Rb4 {[%emt 0:00:01]} 37. Rc5 $1 {[%emt 0:00:11]} Kxd6 {[%emt 0:00:14]} 38. Rb5 {[%emt 0:00:01]} (38. Rbc1 $11 Ne5+ 39. Ke2) 38... Rxh4 $17 {[%emt 0:00:07]} 39. Rc1 {[%emt 0:00:13]} (39. f3 $142) 39... Ne5+ $2 {[%emt 0:00:19] [#]} (39... Rh3+ $17 40. Kd2 Nd4 41. Rb6+ Ke5 42. Re1+ Kf4) 40. Ke2 $11 {[%emt 0:00:02]} Re4+ {[%emt 0:00:06]} 41. Kf1 $1 {[%emt 0:00:19]} Nf3 {[%emt 0:00:03] aiming for ...Rg4.} 42. Rb6+ {[%emt 0:00:13]} (42. Rxa5 $11 {keeps the balance.} Nd2+ 43. Kg2) 42... Ke5 $17 {[%emt 0:00:02] White must now prevent ...Nd2+. Black is more active.} 43. Rc5 $2 {[%emt 0:00:10][%mdl 8192] This move loses the game for White.} (43. b4 $17) 43... h4 $2 {[%emt 0:00:16]} (43... Re1+ 44. Kg2 Kf4) 44. Kg2 {[%emt 0:00:12]} Nxg5 {[%emt 0:00:16]} 45. Rxa5 {[%emt 0:00:01]} (45. Rc1 $142 h3+ 46. Kh1) 45... Rg4+ $19 {[%emt 0:00:05]} 46. Kh2 {[%emt 0:00:11]} h3 {[%emt 0:00:02] Black mates.} 47. Rc5 {[%emt 0:00:11]} Rg2+ {[%emt 0:00:02]} 48. Kh1 {[%emt 0:00:01]} Nf3 {[%emt 0:00:01] Weighted Error Value: White=0.59/Black=0.30} 0-1

[Event "Szansa Chess Open 2022"]
[Site "Warsaw"]
[Date "2022.09.18"]
[Round "6.15"]
[White "Rak, Maciej"]
[Black "Jarocka, Liwia"]
[Result "1-0"]
[ECO "B21"]
[WhiteElo "1866"]
[BlackElo "2131"]
[Annotator "TA"]
[PlyCount "81"]
[EventDate "2022.09.17"]
[EventCountry "POL"]
[SourceTitle "playchess.com"]
[Source "ChessBase"]
[SourceQuality "1"]
[TimeControl "900+10"]

{[%evp 9,80,-40,-32,-77,-83,-95,-81,-85,-16,-30,0,-60,-63,-43,-58,-111,-98,-127,-127,-107,-110,-122,-116,-152,-124,-155,-164,-158,-164,-151,-121,-197,-208,-215,-181,-217,-197,-282,-301,-304,-229,-291,-262,-661,-527,-517,-505,-543,-537,-540,-536,-551,-543,-622,0,0,0,0,29984,29985,29987,29988,29988,29985,29989,29983,29986,29984,29990,29991,29993,29992,29999]} 1. e4 {[%emt 0:00:01]} c5 {[%emt 0:00:01]} 2. d4 {[%emt 0:00:02]} cxd4 {[%emt 0:00:02]} 3. c3 {[%emt 0:00:00]} Nf6 {[%emt 0:00:27]} 4. Bd3 {[%emt 0:01:00]} dxc3 {[%emt 0:00:25]} 5. Nxc3 {[%emt 0:00:02]} Nc6 {[%emt 0:00:02] [#]} 6. Bc4 $146 {[%emt 0:00:24] Prevents d5. B21: Sicilian: 2 f4 and Morra Gambit.} ({Predecessor:} 6. Nf3 d6 7. Bc4 e6 8. O-O Be7 9. Bg5 h6 10. Bf4 O-O 11. Re1 e5 12. Be3 {0-1 (37) Khnykin,N (2309)-Shirov,A (2649) Chess.com INT 2020}) 6... e6 {[%emt 0:00:08][%cal Of6e4]} 7. Nf3 {[%emt 0:00:02]} Bb4 {[%emt 0:00:21]} 8. Qe2 {[%emt 0:00:15] Black is better.} h6 {[%emt 0:01:31]} ({Reject} 8... d5 $6 9. exd5 Nxd5 10. Bd2 $11) (8... O-O $17 {Threatens to win with ...d5.} 9. e5 (9. a3 Bxc3+ 10. bxc3 Nxe4 $17) 9... d5) 9. O-O $11 {[%emt 0:01:03]} O-O {[%emt 0:00:11]} 10. Rd1 {[%emt 0:00:36] Against d5} ({Better is} 10. e5 $1 $11 Ne8 11. Rd1) 10... Bxc3 $15 {[%emt 0:00:17]} 11. bxc3 {[%emt 0:00:03]} d5 $36 {[%emt 0:00:02][%mdl 2048] Black fights for an advantage.} 12. e5 {[%emt 0:03:08]} (12. Bd3 $15) 12... Ne4 $17 {[%emt 0:01:09]} 13. Bb2 {[%emt 0:00:17] [#]} Qa5 $1 {[%emt 0:00:16]} 14. Bd3 {[%emt 0:03:43]} Nxc3 {[%emt 0:00:39]} 15. Bxc3 {[%emt 0:00:02]} Qxc3 {[%emt 0:00:02]} 16. Rac1 {[%emt 0:00:13]} Qb4 {[%emt 0:00:02]} 17. Bb1 {[%emt 0:00:13]} Bd7 {[%emt 0:02:40]} 18. Qd3 {[%emt 0:05:23][%csl Gb1][%cal Rd3h7]} g6 {[%emt 0:00:02]} 19. Qe3 {[%emt 0:00:01]} Kg7 {[%emt 0:02:44]} 20. a3 {[%emt 0:00:01]} (20. h4 $17 {might work better.}) 20... Qe7 $19 {[%emt 0:01:11]} 21. h4 {[%emt 0:00:32]} h5 {[%emt 0:00:19]} 22. Qf4 {[%emt 0:00:48]} Rac8 {[%emt 0:02:44]} 23. g4 {[%emt 0:00:24]} (23. Bd3 $142) 23... hxg4 {[%emt 0:00:02]} 24. Qxg4 {[%emt 0:00:05]} Rh8 {[%emt 0:00:25]} 25. Kg2 {[%emt 0:00:21]} Qxa3 {[%emt 0:01:21]} 26. Nd4 $2 {[%emt 0:00:38]} (26. Bd3) 26... Nxd4 {[%emt 0:01:00]} 27. Rxc8 {[%emt 0:00:02]} Bxc8 {[%emt 0:00:19]} 28. Rxd4 {[%emt 0:00:01]} Qe7 {[%emt 0:00:19]} 29. Rf4 {[%emt 0:00:09]} Bd7 {[%emt 0:00:30]} 30. Rf6 {[%emt 0:00:01][%cal Oh4h5] aiming for h5!} Be8 {[%emt 0:00:08]} 31. Qg5 {[%emt 0:00:19]} Qc7 $2 {[%emt 0:00:30]} ({Black should play} 31... Qb4 $19 32. Bxg6 Qxh4 33. Qxh4 Rxh4) 32. Bxg6 $1 $11 {[%emt 0:00:26]} fxg6 {[%emt 0:00:03]} 33. Rxe6 {[%emt 0:00:00]} Rh5 $2 {[%emt 0:00:15][%mdl 8192] [#]} (33... Qf7 $2 34. Re7 Kg8 35. Rxf7 Kxf7 36. Qf6+ Kg8 37. Qd8 $18) (33... Qc8 $11 34. Qe7+ Bf7 35. Rxg6+ Kxg6 36. Qf6+ Kh7 37. Qxf7+ Kh6 38. Qf6+ Kh7 39. Qf7+ Kh6 40. Qf6+ Kh7 41. Qf7+) 34. Qf6+ {[%emt 0:00:08] White mates.} Kh6 {[%emt 0:00:07]} 35. Rxe8 {[%emt 0:00:11] KQR-KQR} Rf5 {[%emt 0:00:17]} 36. Rh8+ {[%emt 0:00:07]} Qh7 {[%emt 0:00:02]} 37. Rxh7+ {[%emt 0:00:15]} Kxh7 {[%emt 0:00:01]} 38. Qe7+ {[%emt 0:00:02]} Kh6 {[%emt 0:00:01]} 39. e6 {[%emt 0:00:03]} d4 {[%emt 0:00:01]} 40. Qd8 {[%emt 0:00:04][%cal Rd8h8]} Re5 {[%emt 0:00:04]} 41. Qh8# {[%emt 0:00:02] Weighted Error Value: White=0.50/Black=0.58} 1-0

[Event "Szansa Chess Open 2022"]
[Site "Warsaw"]
[Date "2022.09.18"]
[Round "6.16"]
[White "Lapaj, Mateusz"]
[Black "Wadelek, Karol"]
[Result "1-0"]
[ECO "B23"]
[WhiteElo "2216"]
[BlackElo "1943"]
[Annotator "TA"]
[PlyCount "49"]
[EventDate "2022.09.17"]
[EventCountry "POL"]
[SourceTitle "playchess.com"]
[Source "ChessBase"]
[SourceQuality "1"]
[TimeControl "900+10"]

{[%evp 9,49,0,0,10,70,69,131,114,130,123,124,112,277,277,401,401,401,401,393,393,393,406,460,442,431,438,435,435,426,413,490,479,477,487,504,477,548,552,538,514,502,489]} 1. e4 {[%emt 0:00:01]} c5 {[%emt 0:00:01]} 2. Nc3 {[%emt 0:00:02]} a6 {[%emt 0:00:01]} 3. a4 {[%emt 0:00:13]} e6 {[%emt 0:00:06]} 4. Nge2 {[%emt 0:00:03]} d5 {[%emt 0:00:11]} 5. exd5 {[%emt 0:00:02]} exd5 {[%emt 0:00:02]} 6. d4 {[%emt 0:00:01] B23: Closed Sicilian: Lines without g3.} c4 {[%emt 0:00:45]} (6... cxd4 $11 7. Nxd4 Nc6) 7. g3 $1 $14 {[%emt 0:00:02]} Nf6 {[%emt 0:00:07]} (7... Bb4 $14) 8. Bg2 {[%emt 0:00:02] White is clearly better.} h6 {[%emt 0:01:07] [#] Inhibits Bg5.} 9. O-O $1 {[%emt 0:00:06]} Bb4 {[%emt 0:01:27]} 10. Nf4 {[%emt 0:03:58][%cal Rc3d5] [#]} Be6 $146 {[%emt 0:01:15]} (10... Bg4 $16 11. Qe1+ Kf8) ({Predecessor:} 10... Bxc3 11. bxc3 O-O 12. Re1 Nc6 13. Ba3 Re8 14. Rxe8+ Nxe8 15. Nxd5 Bf5 16. Rb1 Rb8 {1-0 (55) Mazanchenko,D (2161)-Jakubowska,A (2073) Chess.com INT 2021}) 11. Qe2 $18 {[%emt 0:01:25][%csl LRd5,LRe6]} Bxc3 {[%emt 0:04:35]} (11... Qe7 $142 12. Ncxd5 Nxd5) 12. Nxe6 {[%emt 0:00:19]} ({Not} 12. bxc3 Qd7 13. Bh3 Kd8 $18) 12... fxe6 {[%emt 0:00:03]} 13. Qxe6+ {[%emt 0:00:02]} ({Weaker is} 13. bxc3 Kf7 14. f4 Nc6 $16) 13... Qe7 {[%emt 0:00:01]} 14. Qc8+ {[%emt 0:00:36][%mdl 64] [#] Skewer} Kf7 {[%emt 0:02:13]} 15. Qxh8 {[%emt 0:01:25]} Bxd4 {[%emt 0:00:06]} 16. Bf4 {[%emt 0:00:17]} Qf8 {[%emt 0:01:23]} 17. Qxf8+ {[%emt 0:00:06]} Kxf8 {[%emt 0:00:01]} 18. Rfd1 {[%emt 0:00:47][%cal Bf1d1,Bd1d5,Bd5c5][%mdl 32]} Nc6 {[%emt 0:00:06]} 19. c3 {[%emt 0:00:40]} Bb6 {[%emt 0:02:53]} 20. Bxd5 {[%emt 0:00:03] White is clearly winning.} Nxd5 {[%emt 0:00:03]} 21. Rxd5 {[%emt 0:00:01]} Re8 {[%emt 0:00:46]} 22. Kf1 {[%emt 0:00:02] Inhibits Re2.} g5 {[%emt 0:00:08]} 23. Bd6+ {[%emt 0:00:08]} Kf7 {[%emt 0:00:07]} 24. Bc5 {[%emt 0:00:34]} Bxc5 {[%emt 0:00:54]} 25. Rxc5 {[%emt 0:00:01] White took control after the opening.  Weighted Error Value: White=0.05 (flawless) /Black=0.41} 1-0

[Event "Szansa Chess Open 2022"]
[Site "Warsaw"]
[Date "2022.09.18"]
[Round "6.17"]
[White "Smykalo, Severyn"]
[Black "Kaczmarska, Joanna"]
[Result "1-0"]
[ECO "E38"]
[WhiteElo "1840"]
[BlackElo "1948"]
[Annotator "TA"]
[PlyCount "71"]
[EventDate "2022.09.17"]
[EventCountry "POL"]
[SourceTitle "playchess.com"]
[Source "ChessBase"]
[SourceQuality "1"]
[TimeControl "900+10"]

{[%evp 9,71,25,58,52,55,35,79,77,73,54,58,41,102,104,93,111,123,104,106,78,76,85,90,95,251,256,292,295,288,283,357,349,487,479,519,516,961,941,895,737,740,735,726,713,975,968,1312,1314,1931,1920,1881,1869,2270,2085,7658,6640,29988,29989,29989,29990,29990,29990,29990,29991]} 1. d4 {[%emt 0:00:01]} Nf6 {[%emt 0:00:00]} 2. c4 {[%emt 0:00:02]} e6 {[%emt 0:00:02]} 3. Nc3 {[%emt 0:00:02]} Bb4 {[%emt 0:00:01]} 4. Qc2 {[%emt 0:00:03]} c5 {[%emt 0:00:01]} 5. dxc5 {[%emt 0:00:05]} Qa5 {[%emt 0:00:09][%cal Of6e4]} 6. Bd2 {[%emt 0:00:34][%cal Bc1d2,Bd2c3,Bc3b2][%mdl 32] E38: Nimzo-Indian: Classical: 4...c5.} Na6 {[%emt 0:02:36][%cal Bb8a6,Ba6c5,Bc5e4,Be4d6][%mdl 32]} 7. e3 {[%emt 0:01:08]} O-O {[%emt 0:01:39]} 8. a3 {[%emt 0:01:05] [#] White is better.} Nxc5 $146 {[%emt 0:00:13]} ({Predecessor:} 8... Bxc5 9. Nf3 Qd8 10. Bd3 Be7 11. b4 b6 12. O-O Bb7 13. Rfd1 Rc8 14. Nb5 d5 15. Nxa7 dxc4 16. Nxc8 cxd3 17. Nxe7+ Qxe7 18. Qxd3 {1-0 (40) Bazant,P (2360)-Kriz,L (2145) Tatranska Lomnica 1998}) 9. Rd1 {[%emt 0:00:26]} Bxc3 {[%emt 0:00:18]} 10. Bxc3 {[%emt 0:00:02]} Qd8 {[%emt 0:00:02]} (10... Qa4 $14 11. Qxa4 Nxa4) 11. b4 {[%emt 0:01:51]} Nce4 {[%emt 0:00:36]} 12. Bb2 {[%emt 0:00:14] Hoping for f3.} d5 {[%emt 0:02:16] [#]} 13. f3 $1 $36 {[%emt 0:00:35][%mdl 2048] White is really pushing.} Nd6 {[%emt 0:00:13]} 14. c5 {[%emt 0:02:40]} Nf5 {[%emt 0:00:29]} 15. Kf2 {[%emt 0:00:48]} Nh5 {[%emt 0:06:11] [#] White must now prevent ...Qh4+.} 16. g3 {[%emt 0:04:45] Inhibits Qh4. Active counter play!} e5 $2 {[%emt 0:02:31] This move loses the game for Black.} (16... Qg5 $16) 17. e4 $18 {[%emt 0:00:37][%cal Be3e4,Be4d5][%mdl 32]} Nd4 {[%emt 0:00:26]} 18. Bxd4 {[%emt 0:00:09]} exd4 {[%emt 0:00:01]} 19. Rxd4 {[%emt 0:00:06]} Be6 {[%emt 0:00:14]} 20. exd5 {[%emt 0:00:16]} Qf6 {[%emt 0:00:00]} 21. Qd2 {[%emt 0:00:34]} ({Not} 21. Rh4 Bf5 22. Bd3 Bg6 $18) 21... Rad8 {[%emt 0:00:16]} 22. Ne2 {[%emt 0:00:56][%cal Bg1e2,Be2f4,Bf4e6][%mdl 32]} Qg6 {[%emt 0:00:19]} (22... Bc8 $142 23. g4 Qh4+ 24. Kg1 Nf6) 23. dxe6 {[%emt 0:00:40]} Rxd4 {[%emt 0:00:01]} 24. Qxd4 {[%emt 0:00:05]} fxe6 {[%emt 0:00:01]} 25. Bg2 {[%emt 0:00:01]} Nf6 {[%emt 0:00:11]} 26. Re1 {[%emt 0:00:17]} Qh5 {[%emt 0:00:18]} 27. Nf4 {[%emt 0:00:14][%csl LRe6,LRh5]} Qh6 {[%emt 0:00:14]} 28. Kg1 {[%emt 0:00:01]} g5 {[%emt 0:00:14]} 29. Nxe6 {[%emt 0:00:04]} Re8 {[%emt 0:00:02]} 30. Re5 {[%emt 0:00:17]} g4 {[%emt 0:00:17]} 31. Nf4 {[%emt 0:00:02] aiming for fxg4.} Rf8 {[%emt 0:00:08]} 32. fxg4 {[%emt 0:00:14] White wants to mate with g5.} Nxg4 {[%emt 0:00:03]} 33. Bd5+ {[%emt 0:00:01] White mates.} Kh8 {[%emt 0:00:16]} 34. Re8+ {[%emt 0:00:11]} Nf6 35. Rxf8+ {[%emt 0:00:02]} Qxf8 {[%emt 0:00:03]} 36. Nh5 {Weighted Error Value: White=0.04 (flawless) /Black=0.52} 1-0

[Event "Szansa Chess Open 2022"]
[Site "Warsaw"]
[Date "2022.09.18"]
[Round "6.18"]
[White "Rekuc, Patryk"]
[Black "Omar, Ahmed"]
[Result "0-1"]
[ECO "C42"]
[WhiteElo "1777"]
[BlackElo "2064"]
[Annotator "TA"]
[PlyCount "36"]
[EventDate "2022.09.17"]
[EventCountry "POL"]
[SourceTitle "playchess.com"]
[Source "ChessBase"]
[SourceQuality "1"]
[TimeControl "900+10"]

{[%evp 9,36,122,111,29,68,-56,-55,-117,-102,-129,-126,-246,-248,-290,-279,-670,-613,-518,-577,-570,-537,-1851,-1759,-1720,-1692,-29990,-29991,-29998,-29999]} 1. e4 {[%emt 0:00:51]} e5 {[%emt 0:00:02]} 2. Nf3 {[%emt 0:00:03]} Nf6 {[%emt 0:00:02]} 3. Nxe5 {[%emt 0:00:04]} Nc6 {[%emt 0:00:01]} 4. Nxc6 {[%emt 0:00:13]} dxc6 {[%emt 0:00:02]} 5. Nc3 {[%emt 0:00:32]} Bc5 {[%emt 0:00:02] Strongly threatening ...Ng4.} 6. Be2 {[%emt 0:00:07] Prevents Ng4. C42: Petroff Defence: 3 Nxe5 and unusual White 3rd moves.} (6. h3 $16) 6... h5 {[%emt 0:00:02][%cal Bh7h5,Bh5g4][%mdl 32]} 7. h3 {[%emt 0:00:15]} ({Better is} 7. Rf1 $14) 7... Qd4 $15 {[%emt 0:01:05][%csl Gc5,LRe4,LRf2][%cal Rd4f2]} 8. O-O {[%emt 0:00:25] [#]} ({White should play} 8. Rf1 $1 $15) 8... Ng4 $1 $40 {[%emt 0:00:28][%cal Rg4f2][%mdl 640] White is in trouble. Black is much more active. The white rooks are badly placed.} 9. Bxg4 {[%emt 0:01:28]} (9. Nb5 cxb5) 9... hxg4 {[%emt 0:00:03] [#]} 10. Ne2 $146 {[%emt 0:00:05] [#]} (10. d3 $17) ({Predecessor:} 10. d3 gxh3 11. Be3 Qd6 12. Qf3 hxg2 13. Qxg2 Bh3 14. Qg5 Bg4 15. Bf4 Bf3 16. Qg2 Qg6 17. Bg3 Qxg3 {0-1 (17) Jary,S (2275)-Rosen,E (2356) Chess.com INT 2021}) 10... Qf6 $1 $19 {[%emt 0:03:10]} (10... Qxe4 11. d4 gxh3 12. f3) 11. d4 {[%emt 0:02:54]} gxh3 {[%emt 0:00:04]} 12. Nf4 {[%emt 0:00:07]} ({Wrong is} 12. dxc5 $2 hxg2 13. Bf4 g5 14. Bxc7 Rh1+ 15. Kxg2 Bh3+ 16. Kg3 Bxf1 17. Qxf1 Rxf1 18. Rxf1 Qxb2 $19) (12. e5 Qf5 13. Ng3 (13. dxc5 $2 hxg2 14. f3 Qxe5 $19)) 12... hxg2 {[%emt 0:00:10]} 13. Nxg2 {[%emt 0:00:08]} Bxd4 {[%emt 0:00:11]} 14. c3 {[%emt 0:00:14]} Bb6 {[%emt 0:00:27]} 15. Bf4 {[%emt 0:01:38]} Qg6 {[%emt 0:00:37] ( -> ...Bg4)} 16. Qf3 {[%emt 0:01:04]} Rh3 {[%emt 0:00:29]} ({But not} 16... Qh7 $2 17. Ne3 $19) 17. Qe2 {[%emt 0:00:15]} Qh7 {[%emt 0:00:11][%csl Gh7][%cal Rh3h1]} 18. Ne3 {[%emt 0:00:49]} Rh1+ {[%emt 0:00:03] Black took control after the opening.  Weighted Error Value: White=1.14/Black=0.03 (flawless)} 0-1

[Event "Szansa Chess Open 2022"]
[Site "Warsaw"]
[Date "2022.09.18"]
[Round "6.19"]
[White "Padalka, Artem"]
[Black "Polak, Michal"]
[Result "1-0"]
[ECO "E15"]
[WhiteElo "2184"]
[BlackElo "1954"]
[Annotator "TA"]
[PlyCount "58"]
[EventDate "2022.09.17"]
[EventCountry "POL"]
[SourceTitle "playchess.com"]
[Source "ChessBase"]
[SourceQuality "1"]
[TimeControl "900+10"]

{[%evp 9,58,-8,43,40,45,36,35,51,33,46,39,39,48,36,43,23,67,67,73,31,43,18,15,21,26,31,31,11,11,12,19,24,34,23,49,39,72,75,102,107,189,195,1255,1234,1028,1113,1332,869,839,828,846]} 1. d4 {[%emt 0:00:10]} Nf6 {[%emt 0:03:06]} 2. Nf3 {[%emt 0:00:03]} e6 {[%emt 0:00:29]} 3. c4 {[%emt 0:00:19]} b6 {[%emt 0:00:01]} 4. g3 {[%emt 0:00:03]} Ba6 {[%emt 0:00:01]} 5. Qc2 {[%emt 0:01:03]} Bb4+ {[%emt 0:00:07]} (5... c5 $11) 6. Bd2 $14 {[%emt 0:00:16] E15: Queen's Indian: 4 g3 sidelines, 4 g3 Ba6 and 4 g3 Bb7 early deviations.} Be7 {[%emt 0:00:05]} 7. e4 {[%emt 0:01:58]} d5 {[%emt 0:00:58]} 8. cxd5 {[%emt 0:00:13] White is slightly better.} Bxf1 $1 {[%emt 0:00:04]} 9. Kxf1 {[%emt 0:00:21] Black must now prevent dxe6.} exd5 {[%emt 0:00:02]} 10. e5 {[%emt 0:00:29]} Ne4 {[%emt 0:00:26]} 11. Nc3 {[%emt 0:01:47]} (11. Kg2 {seems wilder.} Qd7 12. h4 c5 13. Nc3) 11... Nxd2+ {[%emt 0:01:12]} 12. Qxd2 {[%emt 0:00:08]} O-O {[%emt 0:00:48]} 13. Kg2 {[%emt 0:00:07]} Qd7 {[%emt 0:00:59]} 14. Rhe1 {[%emt 0:00:30] [#]} c6 $146 {[%emt 0:01:55]} ({Predecessor:} 14... Nc6 15. Qe2 Nd8 16. Rad1 Ne6 17. Ng1 g6 18. f4 Ng7 19. Nf3 c6 20. Rd3 Rac8 {0-1 (78) Medvegy,Z (2531)-Rigo,J (2313) Hungary 2011}) 15. Rad1 {[%emt 0:00:45]} Na6 {[%emt 0:00:16]} 16. Ng1 {[%emt 0:02:11]} Nc7 {[%emt 0:00:14]} 17. f4 {[%emt 0:00:07]} f5 {[%emt 0:00:20]} 18. exf6 {[%emt 0:00:39]} Bxf6 {[%emt 0:00:12]} 19. Nf3 {[%emt 0:00:01]} Rfe8 {[%emt 0:01:48]} 20. Ne5 {[%emt 0:00:10]} Bxe5 {[%emt 0:01:27]} 21. dxe5 {[%emt 0:00:55]} Rad8 {[%emt 0:00:03] [#]} 22. Ne4 $1 {[%emt 0:00:34]} c5 {[%emt 0:01:14]} (22... Re7 23. Qc2) 23. Nd6 {[%emt 0:00:53]} Re7 {[%emt 0:00:37]} 24. f5 {[%emt 0:01:31] White is much more active.} Ne8 {[%emt 0:00:35]} (24... Rf8 $16 {was worth a try.}) 25. Qxd5+ $18 {[%emt 0:00:03]} Kh8 $2 {[%emt 0:00:07] [#]} (25... Kf8) 26. Nf7+ $1 {[%emt 0:02:45][%mdl 512] White is clearly winning.} Rxf7 {[%emt 0:00:16]} 27. e6 {[%emt 0:00:01]} Nf6 {[%emt 0:02:00]} 28. Qxd7 {[%emt 0:00:42]} Rfxd7 {[%emt 0:00:14]} 29. Rxd7 {[%emt 0:00:29]} Ra8 {[%emt 0:00:24] Weighted Error Value: White=0.09 (flawless) /Black=0.19 (very precise)} 1-0

[Event "Szansa Chess Open 2022"]
[Site "Warsaw"]
[Date "2022.09.18"]
[Round "6.20"]
[White "Rudzinska, Michalina"]
[Black "Seredyn, Dominik"]
[Result "1-0"]
[ECO "B22"]
[WhiteElo "2289"]
[BlackElo "1720"]
[Annotator "ChessBase"]
[PlyCount "67"]
[EventDate "2022.09.17"]
[EventCountry "POL"]
[SourceTitle "playchess.com"]
[Source "ChessBase"]
[SourceQuality "1"]
[TimeControl "900+10"]

1. e4 {[%emt 0:00:03]} c5 {[%emt 0:00:01]} 2. c3 {[%emt 0:00:03]} g6 {[%emt 0:00:01]} 3. d4 {[%emt 0:00:04]} cxd4 {[%emt 0:00:02]} 4. cxd4 {[%emt 0:00:03]} d5 {[%emt 0:00:01]} 5. e5 {[%emt 0:00:15]} Nc6 {[%emt 0:00:02]} 6. Nc3 {[%emt 0:00:07]} a6 {[%emt 0:00:14]} 7. Nf3 {[%emt 0:00:21]} Bg4 {[%emt 0:00:03]} 8. Be2 {[%emt 0:00:04]} Bg7 {[%emt 0:00:26]} 9. h3 {[%emt 0:00:19]} Bxf3 {[%emt 0:00:04]} 10. Bxf3 {[%emt 0:00:03]} e6 {[%emt 0:00:01]} 11. O-O {[%emt 0:00:19]} Nh6 {[%emt 0:00:07]} 12. g4 {[%emt 0:01:47]} O-O {[%emt 0:01:51]} 13. Bg2 {[%emt 0:00:32]} Kh8 {[%emt 0:01:36]} 14. Be3 {[%emt 0:01:46]} Ng8 {[%emt 0:01:11]} 15. Qd2 {[%emt 0:00:23]} f6 {[%emt 0:01:21]} 16. f4 {[%emt 0:01:16]} b5 {[%emt 0:00:33]} 17. Rac1 {[%emt 0:00:28]} Rc8 {[%emt 0:00:14]} 18. b3 {[%emt 0:01:06]} Qb6 {[%emt 0:01:13]} 19. Ne2 {[%emt 0:01:31]} a5 {[%emt 0:01:39]} 20. Rc5 {[%emt 0:01:00]} Nge7 {[%emt 0:03:27]} 21. Rfc1 {[%emt 0:01:00]} fxe5 {[%emt 0:00:15]} 22. fxe5 {[%emt 0:00:53]} Nb4 {[%emt 0:00:40]} 23. a3 {[%emt 0:01:46]} Na6 {[%emt 0:00:13]} 24. Rxc8 {[%emt 0:00:25]} Rxc8 {[%emt 0:00:02]} 25. Rxc8+ {[%emt 0:00:19]} Nxc8 {[%emt 0:00:01]} 26. Kh2 {[%emt 0:00:40]} Qc7 {[%emt 0:00:11]} 27. Bg5 {[%emt 0:00:09]} a4 {[%emt 0:00:51]} 28. bxa4 {[%emt 0:01:21]} bxa4 {[%emt 0:00:02]} 29. Nf4 {[%emt 0:00:10]} Nb6 {[%emt 0:01:28]} 30. Nxe6 {[%emt 0:00:24]} Qc6 {[%emt 0:01:41]} 31. Nxg7 {[%emt 0:00:07]} Kxg7 {[%emt 0:00:01]} 32. Qf4 {[%emt 0:00:17]} Qe8 {[%emt 0:00:38]} 33. Qf6+ {[%emt 0:00:05]} Kg8 {[%emt 0:00:03]} 34. Bh6 {[%emt 0:00:00]} 1-0